Cogmind - Beta 13 @@@ ROGUE MODE // 2024.04.11 @ 01:44:58 Player: chexo4 Result: Self-destructed Performance ------------- Evolutions (2) 1000 Regions Visited (7) 1400 Robots Destroyed (25) 125 Value Destroyed (330) 330 Prototype IDs (23) 460 Alien Tech Used (0) 0 Bonus (273) 273 TOTAL SCORE: 3588 Bonus ------- Follower Combat Kills 85 Aligned with FarCom 300 Friendly Fire -112 Cogmind --------- Core Integrity 530/550 Matter 300/300 Energy 250/250 System Corruption 0% Temperature Cool (0) Movement Rolling (90) Location -8/Materials Parts ------- > --- POWER (1) -------- Ion Engine > --- PROPULSION (4) --- Wheel Wheel Compact Wheel Compact Wheel > --- UTILITY (3) ------ Large Storage Unit Seismic Detector > --- WEAPON (3) ------- AWS/Thermal > --- INVENTORY (15) --- Compact Matter Pod (150) Seismic Detector ECM Suite Propulsion Shielding Small Laser Grenade Launcher Improved Grenade Launcher Datajack Mining Laser Peak State ------------ > --- POWER ------------ Ion Engine > --- PROPULSION ------- Wheel Wheel Compact Wheel Compact Wheel > --- UTILITY ---------- Large Storage Unit Seismic Detector > --- WEAPON ----------- AWS/Thermal > --- INVENTORY -------- Compact Matter Pod Seismic Detector ECM Suite Propulsion Shielding Small Laser Grenade Launcher Grenade Launcher Datajack Mining Laser [Rating: 24] Favorites ----------- Power Ion Engine Engine Ion Engine Propulsion Compact Wheel Wheel Compact Wheel Utility Seismic Detector Device Seismic Detector Storage Large Storage Unit Weapon Light Assault Rifle Energy Gun Small Laser Ballistic Gun Light Assault Rifle Launcher Grenade Launcher Special Weapon Mining Laser Special Melee Weapon Datajack Build | -11 -10 -10 -9 -9 -9 -8 -8 ------- Run | Yrd Mat Min Mat Min Exi Min Mat Slots Evolved 4 | . . . 2 . . . 2 Power . | . . . . . . . . Propulsion 2 | . . . 2 . . . . Utility 1 | . . . . . . . 1 Weapon 1 | . . . . . . . 1 Parts Attached 34 | 7 12 1 4 9 1 . . Power 4 | 2 1 . 1 . . . . Engine 4 | 2 1 . 1 . . . . Core . | . . . . . . . . Reactor . | . . . . . . . . Propulsion 11 | 2 4 . 1 4 . . . Treads . | . . . . . . . . Leg . | . . . . . . . . Wheel 11 | 2 4 . 1 4 . . . Hover . | . . . . . . . . Flight . | . . . . . . . . Utility 4 | 1 1 . 1 1 . . . Device 2 | . 1 . . 1 . . . Storage 2 | 1 . . 1 . . . . Processor . | . . . . . . . . Hackware . | . . . . . . . . Protection . | . . . . . . . . Artifact . | . . . . . . . . Weapon 15 | 2 6 1 1 4 1 . . Energy Gun 8 | 1 2 1 . 3 1 . . Energy Cannon . | . . . . . . . . Ballistic Gun 2 | 1 1 . . . . . . Ballistic Cannon . | . . . . . . . . Launcher 1 | . 1 . . . . . . Special Weapon 3 | . 1 . 1 1 . . . Impact Weapon . | . . . . . . . . Slashing Weapon . | . . . . . . . . Piercing Weapon . | . . . . . . . . Special Melee Weapon 1 | . 1 . . . . . . Unidentified Prototypes . | . . . . . . . . Parts Lost 2 | . 1 . 1 . . . . Power 2 | . 1 . 1 . . . . Propulsion . | . . . . . . . . Utility . | . . . . . . . . Weapon . | . . . . . . . . Highest Loss Streak 1 | . 1 . 1 . . . . To Critical Strikes . | . . . . . . . . Average Slot Usage (%) 93 | . 99 100 83 94 93 88 72 Engine 11 | . 14 14 8 11 11 11 9 Wheel 35 | . 27 28 30 39 44 44 36 Device 11 | . 14 14 11 11 11 11 9 Storage 11 | . 14 14 11 11 11 11 9 Energy Gun 10 | . 11 14 10 10 11 11 9 Ballistic Gun 9 | . 14 14 11 11 4 . . Naked Turns . | . . . . . . . . Heaviest Build 34 | 10 13 11 28 32 34 34 34 Greatest Support 52 | 26 32 32 42 52 52 52 52 Greatest Overweight (x) . | . . . . . . . . Average Overweight (x) . | . . . . . . . . Largest Inventory Capacity 15 | 8 8 8 15 15 15 15 15 Average Capacity 12 | 7 8 8 12 15 15 15 15 Most Carried 11 | 7 8 8 8 11 11 9 9 Average Carried 8 | 4 7 7 7 8 9 9 8 Final Capacity 15 | 8 8 8 15 15 15 15 15 Final Carried 9 | 7 7 8 7 9 9 9 9 Class Distribution -------------------- 59% | Scavenger-Mutant 40% | Mutant Dominant Class ---------------- Mutant | -10/Materials Mutant | -10/Mines Mutant | -9/Materials Scavenger-Mutant | -9/Mines Scavenger-Mutant | -9/Exiles Scavenger-Mutant | -8/Mines Scavenger-Mutant | -8/Materials Resources | -11 -10 -10 -9 -9 -9 -8 -8 ----------- Run | Yrd Mat Min Mat Min Exi Min Mat Matter Collected 627 | 288 124 41 39 130 . . 5 Remotely . | . . . . . . . . Salvage Created 744 | 197 265 . 119 125 . . 38 Parts 49 | 14 18 . 7 8 . . 2 Haulers Intercepted 1 | . 1 . . . . . . Recyclers Shooed 1 | 1 . . . . . . . Parts Field Recycled . | . . . . . . . . Retrieved Matter . | . . . . . . . . Parts Self-Destructed . | . . . . . . . . Prevented . | . . . . . . . . Kills | -11 -10 -10 -9 -9 -9 -8 -8 ------- Run | Yrd Mat Min Mat Min Exi Min Mat Combat Hostiles Destroyed 14 | . 9 . 3 1 . . 1 Guns 12 | . 7 . 3 1 . . 1 AOE 2 | . 2 . . . . . . Classes Destroyed 7 | 3 2 . 1 . . . 1 Worker 1 | 1 . . . . . . . Tunneler 5 | 4 . . . 1 . . . Hauler 1 | . 1 . . . . . . Recycler 2 | 1 1 . . . . . . Operator 1 | . . . . . . . 1 Swarmer 10 | . 9 . . . . . 1 Grunt 4 | . . . 3 1 . . . Thug 1 | . . . . 1 . . . Best Kill Streak 6 | 6 4 . 3 1 . . 1 Combat Bots Only 3 | . 3 . 3 1 . . 1 Max Kills in Single Turn 2 | 1 2 . 1 1 . . 1 Gunslinging . | . . . . . . . . Exploded 2 | . 2 . . . . . . Melee . | . . . . . . . . Uniques/NPCs Destroyed . | . . . . . . . . Combat | -11 -10 -10 -9 -9 -9 -8 -8 -------- Run | Yrd Mat Min Mat Min Exi Min Mat Hostile Shots Fired 68 | . 43 . 11 8 . . 6 Missed 14 | . 10 . 3 1 . . . Damage Taken 525 | . 281 . 92 89 . 16 47 Core 163 | . 75 . 22 30 . 16 20 Absorbed by Shields . | . . . . . . . . Regen/Repaired (Parts) 19 | . 19 . . . . . . Core Remaining (%) 84 | 100 . 70 . . . 83 . Volleys Fired 97 | 18 40 . 15 24 . . . Largest 2 | 2 2 . 2 2 . . . Hottest 120 | 60 100 . 120 120 . . . Shots Fired 188 | 36 70 . 30 48 . . 4 Gun 163 | 36 59 . 29 35 . . 4 Cannon . | . . . . . . . . Launcher 1 | . 1 . . . . . . Special 24 | . 10 . 1 13 . . . Kinetic 87 | 18 30 . 15 24 . . . Thermal 100 | 18 39 . 15 24 . . 4 Explosive 1 | . 1 . . . . . . Electromagnetic . | . . . . . . . . Robot Hit Streak 8 | 8 4 . 7 7 . . 5 Robot Miss Streak 4 | 1 4 . 3 4 . . . Penetration Max . | . . . . . . . . Secondary Targets . | . . . . . . . . Autonomous 4 | . . . . . . . 4 Shots Hit Robots 90 | 25 32 . 17 12 . . 4 Core Hits 38 | 9 15 . 7 5 . . 2 Critical Kills . | . . . . . . . . Critical Parts Destroyed . | . . . . . . . . Critical Strikes 1 | . . . . 1 . . . Burn 1 | . . . . 1 . . . Melee Attacks 3 | . 3 . . . . . . Impact . | . . . . . . . . Slashing . | . . . . . . . . Piercing . | . . . . . . . . Sneak Attacks 3 | . 3 . . . . . . Combat Hostiles . | . . . . . . . . Follow-up Attacks . | . . . . . . . . Damage Inflicted 1089 | 239 381 . 151 199 . . 119 Guns 981 | 239 281 . 151 191 . . 119 Cannons . | . . . . . . . . Explosions 100 | . 100 . . . . . . Melee . | . . . . . . . . Ramming 8 | . . . . 8 . . . Kinetic 339 | 106 116 . 74 43 . . . Thermal 642 | 133 165 . 77 148 . . 119 Explosive 100 | . 100 . . . . . . Electromagnetic . | . . . . . . . . Impact . | . . . . . . . . Slashing . | . . . . . . . . Piercing . | . . . . . . . . Highest Corruption 1 | . . . 1 1 1 1 . Average Corruption 1 | . . . 1 1 1 1 . Corruption Purged . | . . . . . . . . Corruption Blocked . | . . . . . . . . Effects 13 | . . . 3 8 . 2 . Message Errors 1 | . . . . 1 . . . Matter Fused 2 | . . . . 2 . . . Heat Flow Errors 3 | . . . . 2 . 1 . Energy Discharges 3 | . . . 2 . . 1 . Data Loss (minor) 2 | . . . . 2 . . . Data Loss (major) 1 | . . . 1 . . . . Alerts 1 | . . . . 1 . . . Overload Shots . | . . . . . . . . Overflow Damage . | . . . . . . . . Projectiles . | . . . . . . . . Explosions . | . . . . . . . . Melee . | . . . . . . . . Knockbacks . | . . . . . . . . Impact . | . . . . . . . . Kinetic . | . . . . . . . . Secondary . | . . . . . . . . Self-Inflicted Damage 4 | . . . . 4 . . . Shots . | . . . . . . . . Rammed 2 | . . . . 1 . 1 . Targets Rammed 2 | . . . . 1 . 1 . Kicked . | . . . . . . . . Crushed . | . . . . . . . . Highest Temperature 201 | 40 100 . 28 201 . 190 . Average Temperature 47 | 21 27 . 10 80 . 98 . Received Heat Transfer 90 | . . . 48 42 . . . Siege Activations . | . . . . . . . . Robots Corrupted . | . . . . . . . . Combat Hostiles . | . . . . . . . . Parts Fried . | . . . . . . . . Impact Corruptions . | . . . . . . . . Robots Melted . | . . . . . . . . Combat Hostiles . | . . . . . . . . Parts Melted 6 | . 2 . 1 2 . . 1 Heat Transferred 1344 | 300 375 . 175 346 . . 148 Parts Sabotaged . | . . . . . . . . Parts Stolen . | . . . . . . . . Parts Stripped . | . . . . . . . . Power Chain Reactions . | . . . . . . . . Alert | -11 -10 -10 -9 -9 -9 -8 -8 ------- Run | Yrd Mat Min Mat Min Exi Min Mat Peak Influence 204 | 30 204 56 116 125 . 8 80 Initial 56 | . 19 56 21 45 . . 2 Average 47 | 11 69 56 54 46 . 7 19 Maximum Alert Level 1 | . 1 . . . . . . Low Security (%) 99 | 100 98 100 100 100 . 100 100 Level 1 . | . 1 . . . . . . Level 2 . | . . . . . . . . Level 3 . | . . . . . . . . Level 4 . | . . . . . . . . Level 5 . | . . . . . . . . High Security . | . . . . . . . . Max Security . | . . . . . . . . Squads Dispatched 2 | . . . 1 1 . . . Investigation 2 | . . . 1 1 . . . Extermination . | . . . . . . . . Reinforcement . | . . . . . . . . Assault . | . . . . . . . . Garrison . | . . . . . . . . Intercept . | . . . . . . . . Searches Triggered . | . . . . . . . . Construction Impeded . | . . . . . . . . Haulers Reinforced . | . . . . . . . . Active Scanning Responses . | . . . . . . . . Cargo Convoy Interrupts . | . . . . . . . . Stealth | -11 -10 -10 -9 -9 -9 -8 -8 --------- Run | Yrd Mat Min Mat Min Exi Min Mat Distress Signals 2 | . 1 . . 1 . . . Communications Jammed . | . . . . . . . . Distress Signals . | . . . . . . . . Times Spotted 23 | . 13 . 4 3 . . 3 Peak Tracking Total 3 | . 3 . 3 3 . . 3 Tactical Retreats 3 | . 2 . . 1 . . . Traps | -11 -10 -10 -9 -9 -9 -8 -8 ------- Run | Yrd Mat Min Mat Min Exi Min Mat Traps Triggered 1 | . 1 . . . . . . Indirectly . | . . . . . . . . Trap Hack Attempts . | . . . . . . . . Triggered . | . . . . . . . . Disarmed . | . . . . . . . . Reprogrammed . | . . . . . . . . Reused . | . . . . . . . . Traps Extracted . | . . . . . . . . Installed . | . . . . . . . . Triggered . | . . . . . . . . Machines | -11 -10 -10 -9 -9 -9 -8 -8 ---------- Run | Yrd Mat Min Mat Min Exi Min Mat Machines Disabled 2 | . 2 . . . . . . Max in Single Turn 2 | . 2 . . . . . . Machines Repaired . | . . . . . . . . Machines Dismantled . | . . . . . . . . Machines Sabotaged . | . . . . . . . . Overloaded Fab Kills . | . . . . . . . . Hacking | -11 -10 -10 -9 -9 -9 -8 -8 --------- Run | Yrd Mat Min Mat Min Exi Min Mat Machines Accessed 14 | . 4 . 2 1 4 1 2 Terminals 9 | . 3 . 2 1 . 1 2 Fabricators . | . . . . . . . . Repair Stations 1 | . 1 . . . . . . Recycling Units . | . . . . . . . . Scanalyzers . | . . . . . . . . Garrison Access . | . . . . . . . . Total Hacks 71 | . 14 . 6 4 41 3 3 Successful 51 | . 4 . 3 1 41 1 1 Failed 20 | . 10 . 3 3 . 2 2 Catastrophic 5 | . 3 . 1 1 . . . Database Lockouts . | . . . . . . . . Manual 24 | . 12 . 5 3 1 . 3 Terminals 28 | . 12 . 6 4 . 3 3 Fabricators . | . . . . . . . . Repair Stations 2 | . 2 . . . . . . Recycling Units . | . . . . . . . . Scanalyzers . | . . . . . . . . Garrison Access . | . . . . . . . . Terminal Hacks 49 | . 2 . 3 1 41 1 1 Record 40 | . . . . . 40 . . Level Access Points 1 | . . . . . . 1 . Branch Access Points 3 | . 1 . 1 . . . 1 Terminal Index 2 | . 1 . 1 . . . . Dispatch Records 1 | . . . . 1 . . . Zone Layout 1 | . . . 1 . . . . Derelict Proto ID Bank 1 | . . . . . 1 . . Fabricator Hacks . | . . . . . . . . Repair Station Hacks 2 | . 2 . . . . . . Scan Component 1 | . 1 . . . . . . Repair 1 | . 1 . . . . . . Recycling Unit Hacks . | . . . . . . . . Scanalyzer . | . . . . . . . . Garrison Access Hacks . | . . . . . . . . Unauthorized Hacks . | . . . . . . . . Terminals . | . . . . . . . . Fabricators . | . . . . . . . . Repair Stations . | . . . . . . . . Recycling Units . | . . . . . . . . Scanalyzers . | . . . . . . . . Garrison Access . | . . . . . . . . Data Cores Recovered 1 | . . . . . . . 1 Used . | . . . . . . . . Hacking Detections 7 | . 2 . 2 1 . 1 1 Full Trace Events 4 | . 2 . 1 1 . . . Feedback Events 1 | . . . 1 . . . . Corruption 1 | . . . 1 . . . . Feedback Blocked . | . . . . . . . . Robot Schematics Acquired . | . . . . . . . . Robots Built . | . . . . . . . . Authchips . | . . . . . . . . Time . | . . . . . . . . Total Robot Build Rating . | . . . . . . . . Part Schematics Acquired . | . . . . . . . . Parts Built . | . . . . . . . . Authchips . | . . . . . . . . Time . | . . . . . . . . Total Part Build Rating . | . . . . . . . . Parts Repaired 1 | . 1 . . . . . . Time 26 | . 26 . . . . . . Parts Recycled . | . . . . . . . . Recycled Matter . | . . . . . . . . Retrieved Matter . | . . . . . . . . Retrieved Components . | . . . . . . . . Parts Scanalyzed . | . . . . . . . . Part Schematics Acquired . | . . . . . . . . Parts Damaged . | . . . . . . . . Bothacking | -11 -10 -10 -9 -9 -9 -8 -8 ------------ Run | Yrd Mat Min Mat Min Exi Min Mat Used RIF Installer . | . . . . . . . . Robots Hacked 1 | . 1 . . . . . . Non-combat 1 | . 1 . . . . . . Combat . | . . . . . . . . Robot Hacks Applied 1 | . 1 . . . . . . no_distress 1 | . 1 . . . . . . Relay Couplers Released . | . . . . . . . . Fabnet Peak Effective % . | . . . . . . . . Robots Rewired . | . . . . . . . . Allies Hacked . | . . . . . . . . Hacks Repelled . | . . . . . . . . Allies | -11 -10 -10 -9 -9 -9 -8 -8 -------- Run | Yrd Mat Min Mat Min Exi Min Mat Total Allies 5 | . . . . 5 . . . Largest Group 3 | . . . . 3 3 3 3 Highest-Rated Group 46 | . . . . 46 40 40 40 Highest-Rated Ally 31 | . . . . 31 16 16 16 Total Orders . | . . . . . . . . Ally Attacks 11 | . . . . 10 . . 1 Total Damage 222 | . . . . 207 . . 15 Kills 3 | . . . . 3 . . . Allies Corrupted . | . . . . . . . . Allies Melted . | . . . . . . . . Intel | -11 -10 -10 -9 -9 -9 -8 -8 ------- Run | Yrd Mat Min Mat Min Exi Min Mat Robot Analysis Total . | . . . . . . . . Derelict Logs Recovered 1 | . . . . 1 . . . Drone Launches . | . . . . . . . . Drone Recoveries . | . . . . . . . . Exploration | -11 -10 -10 -9 -9 -9 -8 -8 ------------- Run | Yrd Mat Min Mat Min Exi Min Mat Turns Passed 2698 | 143 671 98 211 1012 246 202 115 Spaces Moved 2311 | 90 495 65 165 903 255 213 125 Core 18 | 18 . . . . . . . Treads . | . . . . . . . . Legs . | . . . . . . . . Wheels 2293 | 72 495 65 165 903 255 213 125 Hover . | . . . . . . . . Flight . | . . . . . . . . Fastest Speed 50 | 50 90 100 93 90 90 90 90 Average Speed 92 | 82 97 100 95 91 90 90 90 Slowest Speed 100 | 90 100 100 100 93 90 90 90 Overloaded Moves . | . . . . . . . . Propulsion Burnouts . | . . . . . . . . Robots Hopped . | . . . . . . . . Cave-ins Triggered . | . . . . . . . . Exploration Rate (%) 38 | 5 44 14 12 99 61 57 15 Regions Visited 7 Branch Regions 4 Pre-discovered Areas 2 | . . . . 1 1 . . Known Exits Taken 3 | . 1 . 1 . . 1 . Unknown Exits Taken 4 | 1 . 1 . 1 1 . . Scrap Searched 3 | . . 1 . 2 . . . Spaces Dug 11 | . 10 . 1 . . . . Terrain Destroyed 14 | . 10 . 1 3 . . . Melee . | . . . . . . . . Projectile 14 | . 10 . 1 3 . . . AOE . | . . . . . . . . Terrain Rammed . | . . . . . . . . Walls Destroyed . | . . . . . . . . Machines Disabled . | . . . . . . . . Actions | -11 -10 -10 -9 -9 -9 -8 -8 --------- Run | Yrd Mat Min Mat Min Exi Min Mat Total 2649 | 124 598 97 189 1019 272 223 127 Wait 166 | . 36 31 1 74 14 10 . Move 2304 | 89 494 64 164 902 254 212 125 Hop . | . . . . . . . . Pick Up 28 | 10 6 1 3 6 1 . 1 Fast Attach 5 | 3 2 . . . . . . Attach 10 | 3 3 . 2 1 1 . . Detach 1 | . 1 . . . . . . Swap 19 | 1 7 1 2 8 . . . Drop 14 | . 6 . 2 3 2 . 1 Fire 97 | 18 40 . 15 24 . . . Melee 3 | . 3 . . . . . . Ram 2 | . . . . 1 . 1 . Kick . | . . . . . . . . Crush . | . . . . . . . . Escape Stasis . | . . . . . . . . Rewire . | . . . . . . . . Trap . | . . . . . . . . Miscellaneous . | . . . . . . . . Route ------- -11/Scrapyard -10/Materials (discovered 2 exits: *Mat / *Min) -10/Mines -9/Materials (discovered 3 exits: *Min x2 / Sto) -9/Mines (discovered 3 exits: *Mat x2 / *Exi) -9/Exiles -8/Mines (discovered 2 exits: *Mat x2) -8/Materials History --------- Turn | Location | Event 6 | -11/Scrapyard | Discovered new exit (range 16) 144 | -11/Scrapyard | Entered Materials 279 | -10/Materials | Repaired Wheel 300 | -10/Materials | Build established: Mutant 689 | -10/Materials | Discovered new exit (range 13) 761 | -10/Materials | Identified exit to Mines 815 | -10/Materials | Entered Mines 869 | -10/Mines | Discovered new exit (range 12) 913 | -10/Mines | Entered Materials 913 | -9/Materials | Evolved 2 slots: Propulsion x2 1111 | -9/Materials | Discovered new exit (range 8) 1111 | -9/Materials | Identified exit to Mines 1111 | -9/Materials | Identified exit to Storage 1124 | -9/Materials | Entered Mines 1137 | -9/Mines | Discovered new exit (range 11) 1299 | -9/Mines | Excavation squad dispatched 1299 | -9/Mines | A large section of the Mines collapsed 1468 | -9/Mines | Discovered new exit (range 5) 1500 | -9/Mines | Build established: Scavenger-Mutant 1600 | -9/Mines | Learned location of Zion (-6) 1743 | -9/Mines | Found a damaged Exp. Sensor Array with a note attached 1922 | -9/Mines | Assisted by bots powering up and referring to "LRC-V3" 2119 | -9/Mines | Deemed a non-threat by the Exiles lab entrance 2119 | -9/Mines | Discovered new exit (range 5) 2136 | -9/Mines | Entered Exiles 2136 | -9/Exiles | Accompanied by 3 allies 2163 | -9/Exiles | Met 8R-AWN 2176 | -9/Exiles | Met EX-HEX 2202 | -9/Exiles | Met EX-BIN 2215 | -9/Exiles | Aligned with FarCom system 2216 | -9/Exiles | Given EX-Vault access code 2237 | -9/Exiles | Opened EX-Vault 2245 | -9/Exiles | Found AWS/Thermal 2286 | -9/Exiles | Warned to stay clear of 0b10 Research branches 2316 | -9/Exiles | Met EX-DEC 2360 | -9/Exiles | Discovered new exit (range 11) 2382 | -9/Exiles | Left Exiles lab with AWS/Thermal 2382 | -9/Exiles | Entered Mines 2382 | -8/Mines | Accompanied by 3 allies 2386 | -8/Mines | Identified exit to Materials 2584 | -8/Mines | Entered Materials 2584 | -8/Materials | Accompanied by 3 allies 2584 | -8/Materials | Evolved 2 slots: Utility x1, Weapon x1 2699 | -8/Materials | Self-destructed Last Messages --------------- R-06 Scavenger collects Grenade Launcher. T-07 Excavator is excavating. Connecting with Terminal... U-05 Engineer lays Concrete. T-07 Excavator is excavating. Connecting with Terminal... >>Access(Branch) No branch access points found. O-24 Administrator: "IFF HANDSHAKE FAILED. SECURING TERMINAL." O-24 Administrator destroyed. Acquired 5 matter. Acquired data core, extracted dynamic key. Decrypted 4 local trap positions from data. K-01 Serf collects debris. R-06 Scavenger collects Imp. Hover Unit. K-01 Serf collects debris. Destroyed Flight Unit. Flight Unit melted. S-10 Pest destroyed. Map ----- +----------------------------------------------------+ | ????????????????????#^^ #??????????????# + | | ????????????????????#^^ #??????????????# ## | | ????????????????????# ########???????# ## | | ???????????????????? ######### ## | | ???????????????????? # """ ## ## | | ????????????????????? ?? # """ ## ## | | ????????????????????######?# # """ + #####+### | | ????????????????????# # # %## #???????? | | ????????????????????# """ # # ! ## #???????? | | ????????????????????# """ + + ## #???????? | | ????????????????????# """ # ##+######+####????? | | ????????????????????# # ## #????? | | ????????????????????# ! ?# ## ]== #????? | | ????????????????????######?# ## ]== #????? | | ????????????????????# # ## ]== ]#????? | | ????????????????????# ! # + #????? | | ????????????????????# + ## """ +????? | | ????????????????????# # ## R" #????? | | ????????????????????# ! # ## """ #????? | | ????????????????????# ?# ##! #????? | | ????????????????????######?# ######+####????? | | ???????????????????????????# ss ????? | | ??????????????????##???????# %#??????? | | ?????????????##+### ?????# #??????? | | ?????????? ! #### r ###+####??????? | | ?????????? @ #??? ?????????? | | ?????????? #### u #?????????????? | | ?????????????###### ?????#/### #?????????????? | | ??????????????????##??????? #?? #?????????????? | | ??????????????????????????? #?? #?????????????? | | ????????????????????w?????? #?? #?????????????? | | ???????????????????????????==#?? #?????????????? | | ??????????????????????????===#?? #?????????????? | | ??????????????????????????===#?? #?????????????? | | ?????????????????????????? ???? #?????????????? | | ??????????????????????????#+#????????????????????? | | ?????????????????????????????????????????????????? | | ?????????????????????????????????Y???????????????? | | ?????????????????????????????????????????????????? | | ?????????????????????????????????????????????????? | | ?????????????????????????????????????????????????? | | ?????????????????????????????????????????????????? | | ?????????????????????????????????????????????????? | | ?????????????????????????????????????????????????? | | ?????????????????????????????????????????????????? | | ?????????????????????????????????????????????????? | | ?????????????????????????????????????????????????? | | ?????????????????????????????????????????????????? | | ?????????????????????????????????????????????????? | | ?????????????????????????????????????????????????? | +----------------------------------------------------+ Best States ------------- Heat Dissipation 31 Energy Generation 10 Energy Capacity 250 Matter Stores 300 Matter Capacity 300 Sight Range 16 Terrain Scan Density 10 Evasion (%) 50 Item Schematics ----------------- None Robot Schematics ------------------ None Fabricated ------------ Nothing Alien Tech Used ----------------- None Achievements -------------- None Challenges ------------ None Game ------ Seed WarpMetafiberDeconstructor Manual? 0 Play Time 00:22:29 Cumulative 20.2 hours Start 2024.04.11 @ 01:22:31 End 2024.04.11 @ 01:44:58 Sessions 1 Manual Loads 0 Difficulty Rogue Special Mode None Game No. 54 Rogue 54 Adventurer 0 Explorer 0 Win Type - Total 0 Types 0/0/0/0/0/0/0/0/0 Lore% 17 Gallery% 27 Achievement% 22 Wizard Run 0 Options --------- Layout 1 ASCII 0 Keyboard 0 Movement Arrows Keybinds 0 Fullscreen 2 Font 24/Smallcaps Map View 50x35 Zoom Use 0% Tactical HUD 0 Map Filters NONE Filters NONE Steam 1 RUN: d50efb24-a2b9-4d0b-94b9-2a6a48490686